fUSD/lending_fUSD_20250520
["ID","MTS","AMOUNT","RATE_DAILY","PERIOD"]
[361782210,1747776520470,272.70325571,0.00042791,120]
[361782211,1747776521353,352.97639314,0.00042791,120]
[361782212,1747776522644,2844.48603764,0.00042791,120]
[361782213,1747776523463,160.70605942,0.00042791,120]
[361782214,1747776523506,3145.84952071,0.00042791,120]
[361782215,1747776525476,182.91451273,0.00042791,120]
[361782216,1747776525798,1012.09593263,0.00042791,60]
[361782217,1747776526130,276.27383419,0.00042791,120]
[361782218,1747776526585,156.7221159,0.00042791,120]
[361782219,1747776527942,442.88616381,0.00042791,60]
[361782220,1747776527992,1576.51506987,0.00042791,120]
[361782221,1747776528049,3003.8482189,0.00042791,120]
[361782222,1747776528091,483.62881639,0.00027,120]
[361782223,1747776528125,1643.96514577,0.00027,120]
[361782224,1747776528316,2199.78262473,0.00042791,120]
[361782232,1747776631989,-192.64472427,0.00011899,2]
[361782233,1747776632000,-873.42027573,0.00011899,2]
[361782234,1747776632012,-326.57972427,0.00011899,2]
[361782235,1747776632023,-1432.93936168,0.000119,2]
[361782236,1747776632033,-172.4881927,0.000119,2]
[361782237,1747776632045,-2968.60466681,0.000119,2]
[361782238,1747776632063,-16718.80266717,0.000119,2]
[361782239,1747776632073,-500.0,0.00011973,2]
[361782240,1747776632082,-507.35604364,0.00011973,2]
[361782241,1747776632092,-500.0,0.00011973,2]
[361782242,1747776632103,-500.0,0.00011973,2]
[361782243,1747776632115,-500.0,0.00011973,2]
[361782244,1747776632127,-500.0,0.00011973,2]
[361782245,1747776632138,-163.21,0.0001199,2]
[361782246,1747776632150,-163.21,0.0001199,2]
[361782247,1747776632161,-163.21,0.0001199,2]
[361782248,1747776632173,-163.21,0.0001199,2]
[361782249,1747776632183,-163.21,0.0001199,2]
[361782250,1747776632193,-163.21,0.0001199,2]
[361782251,1747776632204,-206.23109534,0.00011999,2]
[361782252,1747776632213,-198.94900067,0.00011999,2]
[361782253,1747776632224,-231.07211672,0.00011999,2]
[361782254,1747776632234,-324.66260556,0.00011999,2]
[361782255,1747776632244,-282518.36181597,0.00012,2]
[361782256,1747776632262,-574.6,0.00012,2]
[361782257,1747776632293,-2800.37407409,0.00012,2]
[361782258,1747776632304,-8516.70532,0.00012,2]
[361782259,1747776632325,-5538.5,0.00012,2]
[361782262,1747776632348,-4673.48024484,0.00012,2]
[361782263,1747776632359,-798.32798818,0.00012,2]
[361782264,1747776632377,-1448.36731794,0.00012,2]
[361782269,1747776632419,-814.14261092,0.00012,2]
[361782271,1747776632433,-4851.01304519,0.00012,2]
[361782816,1747776638303,-195.56247353,0.000119,2]
[361782818,1747776638314,-380.22935713,0.00012,2]
[361782821,1747776638327,-19886.56593201,0.00012,2]
[361782826,1747776638367,-2114.01132666,0.00012,2]
[361782828,1747776638380,-672.52196916,0.00012,2]
[361782836,1747776638449,-1402.30924896,0.00012,2]
[361782838,1747776638461,-353.41171441,0.00012,2]
[361782880,1747776638972,-642.3496034,0.00012,2]
[361782881,1747776638993,-999.42965019,0.00012,2]
[361782883,1747776639006,-3057.6303799,0.00012,2]
[361783001,1747776640124,-434.15677188,0.00012,2]
[361783197,1747776641998,-515.46568122,0.00012,2]
[361783200,1747776642009,-49603.36917283,0.00012,2]
[361783203,1747776642032,-5307.03333796,0.00012,2]
[361783205,1747776642044,-18279.08954269,0.00012,2]
[361783208,1747776642063,-93795.61097766,0.00012,2]
[361783211,1747776642080,-395.37673665,0.00012,2]
[361783249,1747776643653,-387.88899996,0.00012,2]
[361783250,1747776643665,-252.3807417,0.00012,2]
[361783251,1747776643682,-3440.308823,0.00012,2]
[361783252,1747776643717,-335.6599995,0.00012,2]
[361783253,1747776643729,-513.54736,0.00012,2]
[361783254,1747776643741,-3730.22250696,0.00012,2]
[361783255,1747776643760,-634.27910617,0.00012,2]
[361783256,1747776643775,-500.0,0.00012,2]
[361783270,1747776645984,-73251.95680797,0.00012,2]
[361783271,1747776646045,-5847.5337545,0.00012,2]
[361783272,1747776646164,-1379.73856554,0.00012,2]
[361783273,1747776646177,-1750.0,0.00012,2]
[361783274,1747776646226,-1796.1091498,0.00012,2]
[361783275,1747776646241,-2517.9228495,0.00012,2]
[361783276,1747776646252,-10429.1859893,0.00012,2]
[361783277,1747776646265,-531.65,0.00012,2]
[361783278,1747776646323,-975.41399835,0.00012,2]
[361783279,1747776646351,-542.85,0.00012,2]
[361783280,1747776646447,-311.24837342,0.00012,2]
[361783282,1747776682228,200.0,0.00042805,120]
[361783283,1747776725707,207.4,0.00042805,120]
[361783284,1747776737207,-342.21902005,0.000119,2]
[361783285,1747776737237,-690.53217585,0.000119,2]
[361783286,1747776737269,-500.0,0.00011973,2]
[361783287,1747776737296,-500.0,0.00011973,2]
[361783288,1747776737324,-300.0,0.00011999,2]
[361783289,1747776737352,-113567.42114212,0.00012,2]
[361783290,1747776823454,159.34,0.00025,120]
[361783291,1747776859627,204.0,0.00042805,120]
[361783294,1747776988072,-202.25735025,0.000119,2]
[361783295,1747776988100,-39797.74264975,0.00011997,2]
[361783297,1747777289837,170.87,0.00027362,120]
[361783300,1747777657766,87128.39065858,0.00042794,120]
[361783318,1747777832190,-298.1025574,0.00011617,2]
[361783319,1747777832203,-334.50747262,0.00011617,2]
[361783320,1747777832275,-231.44073372,0.00011617,2]
[361783321,1747777832285,-549.43217068,0.00011899,2]
[361783322,1747777832298,-614.97,0.00011899,2]
[361783323,1747777832430,-35.59782932,0.00011899,2]
[361783324,1747777832441,-166.24990284,0.000119,2]
[361783325,1747777832450,-575.4434799,0.000119,2]
[361783326,1747777832461,-2170.65495443,0.000119,2]
[361783327,1747777832471,-18015.52706729,0.000119,2]
[361783329,1747777832480,-182.03161518,0.000119,2]
[361783330,1747777832489,-515.84657799,0.00011973,2]
[361783332,1747777832499,-500.0,0.00011973,2]
[361783334,1747777832511,-500.0,0.00011973,2]
[361783337,1747777832521,-218039.62514834,0.00011997,2]
[361783341,1747777832566,-905.7001952,0.00011997,2]
[361783343,1747777832578,-471.04020002,0.00011997,2]
[361783428,1747777838930,-738.69811913,0.00011997,2]
[361783430,1747777838943,-1479.81197628,0.00011997,2]
[361783465,1747777840555,-435.4786008,0.00011997,2]
[361783466,1747777840572,-7686.12277189,0.00011997,2]
[361783479,1747777840824,-308812.24133369,0.00011997,2]
[361783481,1747777840835,-11918.50380807,0.00012,2]
[361783486,1747777840875,-1168.91691587,0.00012,2]
[361783489,1747777840888,-876.7,0.00012,2]
[361783510,1747777843275,-441.18848038,0.00012,2]
[361783511,1747777843574,-212712.45779164,0.00012,2]
[361783590,1747777846182,-4838.25719989,0.00012,2]
[361783591,1747777846465,-2659.4,0.00012,2]
[361783592,1747777846521,-629.04998635,0.00012,2]
[361783613,1747777846905,3200.00000099,0.00042794,60]
[361783614,1747777924799,151.0,0.00042794,120]
[361783615,1747777924843,1000.0,0.00042794,120]
[361783616,1747777926250,500.0,0.00042794,120]
[361783617,1747777926573,518.5,0.00042794,120]
[361783618,1747777927064,537.6845,0.00042794,120]
[361783628,1747778221379,500.0,0.00027397,120]
[361783629,1747778230489,199.20597015,0.00042799,120]
[361783630,1747778258166,500.0,0.00027397,120]
[361783631,1747778269158,500.0,0.00027397,120]
[361783632,1747778278983,500.0,0.00027397,120]
[361783633,1747778291996,500.0,0.00027397,120]
[361783634,1747778327655,500.0,0.00027397,120]
[361783635,1747778343243,500.0,0.00027397,120]
[361783636,1747778409677,200.95292425,0.00027397,120]
[361783638,1747778517236,499.99,0.00027397,120]
[361783639,1747778600792,2829.62947952,0.00042789,120]
[361783640,1747778821296,13253.28,0.00042789,120]
[361783647,1747779032387,-405.497125,0.00011642,2]
[361783648,1747779032398,-782.54294698,0.0001176,2]
[361783649,1747779032416,-255.49699607,0.0001176,2]
[361784002,1747779038507,-422.93805695,0.0001176,2]
[361784003,1747779038520,-172.418,0.0001176,2]
[361784004,1747779038531,-629.36241081,0.00011899,2]
[361784005,1747779038545,-570.63758919,0.00011899,2]
[361784006,1747779038555,-166.24990284,0.000119,2]
[361784007,1747779038565,-2535.42722902,0.000119,2]
[361784008,1747779038575,-181.19615581,0.000119,2]
[361784010,1747779038585,-172.4881927,0.000119,2]
[361784012,1747779038597,-5952.06165612,0.000119,2]
[361784023,1747779041083,-10364.42290436,0.000119,2]
[361784025,1747779041092,-500.0,0.00011973,2]
[361784027,1747779041102,-11548.35550003,0.0001199,2]
[361784029,1747779041112,-150.0,0.00011999,2]
[361784031,1747779041122,-500.0,0.00011999,2]
[361784032,1747779041132,-165.05651139,0.00011999,2]
[361784034,1747779041142,-167477.78632949,0.00012,2]
[361784036,1747779041172,-640.08419563,0.00012,2]
[361784047,1747779043894,-212763.78891841,0.00012,2]
[361784048,1747779043910,-921.82681793,0.00012,2]
[361784052,1747779046366,-1066.0,0.00012,2]
[361784053,1747779046449,-68521.327,0.00012,2]
[361784067,1747779398252,150.0,0.00013,5]
[361784085,1747780232053,-467.781587,0.0001176,2]
[361784086,1747780232063,-610.1978843,0.0001176,2]
[361784087,1747780232178,-558.5841157,0.0001176,2]
[361784088,1747780232188,-944.0,0.00011899,2]
[361784089,1747780232198,-169.24151013,0.000119,2]
[361784090,1747780232207,-3131.27129417,0.000119,2]
[361784091,1747780232219,-12454.99975959,0.000119,2]
[361784092,1747780232228,-172.48819269,0.000119,2]
[361784093,1747780232238,-575.44347987,0.000119,2]
[361784094,1747780232248,-2293.85011645,0.000119,2]
[361784095,1747780232257,-200.0,0.00011904,2]
[361784096,1747780232266,-502.54862324,0.00011973,2]
[361784097,1747780232276,-470.09874022,0.00011973,2]
[361784098,1747780232285,-614.09345001,0.00011999,2]
[361784099,1747780232295,-365.10715537,0.00011999,2]
[361784100,1747780232306,-56539.8568826,0.00012,2]
[361784101,1747780232322,-1105.0101586,0.00012,2]
[361784102,1747780232338,-1114.35640769,0.00012,2]
[361784107,1747780237482,-10292.544,0.00012,2]
[361784109,1747780237596,-3275.01247434,0.00012,2]
[361784110,1747780237649,-1156.05486279,0.00012,2]
[361784111,1747780237666,-375.11531255,0.00012,2]
[361784133,1747780239939,-1902.58556605,0.00012,2]
[361784134,1747780239951,-39029.054,0.00012,2]
[361784135,1747780240031,-37098.2229118,0.00012,2]
[361784166,1747780242693,-717.58091289,0.00012,2]
[361784168,1747780245688,-2406.84841981,0.00012,2]
[361784169,1747780245702,-5996.14601273,0.00012,2]
[361784170,1747780245718,-518.21999999,0.00012,2]
[361784171,1747780245730,-1006.1975998,0.00012,2]
[361784172,1747780245798,-428.74501854,0.00012,2]
[361784174,1747780513247,2000.0,0.00042784,60]
[361784183,1747780922825,150.67,0.00026615,120]
[361784184,1747781013132,311.17,0.00042783,120]
[361784187,1747781346647,6000.0,0.00042784,60]
[361784205,1747781431683,-417.49656767,0.00011342,2]
[361784206,1747781431749,-725.38446233,0.00011342,2]
[361784207,1747781431760,-333.72137723,0.000114,2]
[361784208,1747781431769,-213.85122928,0.00011509,2]
[361784209,1747781431887,-632.67200292,0.00011509,2]
[361784222,1747781438381,-17.52753154,0.00011509,2]
[361784223,1747781438392,-421.003429,0.0001176,2]
[361784224,1747781438403,-935.026,0.0001176,2]
[361784225,1747781438414,-1200.0,0.00011898,2]
[361784226,1747781438425,-200.0,0.00011898,2]
[361784227,1747781438437,-300.0,0.00011899,2]
[361784228,1747781438448,-169.24151011,0.000119,2]
[361784229,1747781438459,-2064.46510485,0.000119,2]
[361784230,1747781438471,-719.95727188,0.000119,2]
[361784231,1747781438485,-1414.48647876,0.000119,2]
[361784232,1747781438531,-5464.28979694,0.000119,2]
[361784233,1747781438543,-4500.019006,0.000119,2]
[361784235,1747781439950,-756.60843305,0.000119,2]
[361784236,1747781440176,-1172.28296179,0.000119,2]
[361784237,1747781440186,-575.44347987,0.000119,2]
[361784238,1747781440196,-172.48819269,0.000119,2]
[361784239,1747781440206,-163.07654022,0.000119,2]
[361784240,1747781440217,-200.0,0.00011904,2]
[361784241,1747781440227,-491.942,0.0001194,2]
[361784242,1747781440236,-1000.0,0.00011999,2]
[361784243,1747781440247,-1939.89423352,0.00012,2]
[361784244,1747781440260,-60374.99999965,0.00012,2]
[361784245,1747781440292,-1803.66357558,0.00012,2]
[361784246,1747781440304,-1401.6,0.00012,2]
[361784252,1747781445786,-6432.06779811,0.00012,2]
[361784253,1747781445911,-7490.0644384,0.00012,2]
[361784254,1747781445923,-12795.46002071,0.00012,2]
[361784257,1747781446100,-340.85218645,0.00012,2]
[361784258,1747781446112,-51905.20079498,0.00012,2]
[361784259,1747781490104,500.0,0.00042784,60]
[361784260,1747781503493,500.0,0.00042784,60]
[361784261,1747781514288,500.0,0.00042784,60]
[361784262,1747781522654,500.0,0.00042784,60]
[361784263,1747781525637,1000.0,0.00042784,120]
[361784264,1747781525682,500.0,0.00042784,120]
[361784265,1747781525777,151.0,0.00042784,120]
[361784266,1747781525872,1037.0,0.00042784,120]
[361784267,1747781525934,518.5,0.00042784,120]
[361784268,1747781526112,156.587,0.00042784,120]
[361784269,1747781526384,537.6845,0.00042784,120]
[361784270,1747781526433,1075.369,0.00042784,120]
[361784271,1747781526811,162.380719,0.00042784,120]
[361784272,1747781527006,557.5788265,0.00042784,120]
[361784273,1747781527077,1115.157653,0.00042784,120]
[361784274,1747781527458,168.3888056,0.00042784,120]
[361784275,1747781527736,578.20924308,0.00042784,120]
[361784276,1747781527902,1156.41848616,0.00042784,120]
[361784277,1747781528164,168.3888056,0.00042784,120]
[361784278,1747781528414,599.60298507,0.00042784,120]
[361784279,1747781529024,621.78829552,0.00042784,120]
[361784280,1747781529649,644.79446246,0.00042784,120]
[361784281,1747781529811,500.0,0.00042784,60]
[361784282,1747781530279,668.65185757,0.00042784,120]
[361784283,1747781531499,200.0,0.00042784,120]
[361784284,1747781532183,207.4,0.00042784,120]
[361784285,1747781533321,215.0738,0.00042784,120]
[361784286,1747781534095,223.0315306,0.00042784,120]
[361784287,1747781534719,231.28369723,0.00042784,120]
[361784288,1747781536150,231.28369723,0.00042784,120]
[361784289,1747781537208,500.0,0.00042784,60]
[361784290,1747781544614,500.0,0.00042784,68]
[361784291,1747781558826,500.0,0.00042784,60]
[361784292,1747781567509,500.0,0.00042784,60]
[361784293,1747781574673,500.0,0.00042784,60]
[361784294,1747781592271,990.58394,0.00042784,60]
[361784295,1747781607333,500.0,0.00042784,60]
[361784296,1747781617487,500.0,0.00042784,60]
[361784299,1747781633905,600000.00000001,0.00042784,120]
[361784300,1747781639778,500.0,0.00042784,60]
[361784301,1747781649975,500.0,0.00042784,60]
[361784302,1747781661560,940.0,0.00042784,60]
[361784304,1747781726804,780221.40296091,0.00042784,120]
[361784305,1747781831926,943.83355304,0.00042784,120]
[361784318,1747782024367,830.44,0.00010466,2]
[361784323,1747782089928,151.0,0.00010466,2]
[361784324,1747782090006,151.0,0.00010466,2]
[361784325,1747782090569,151.0,0.00010466,2]
[361784326,1747782090601,151.0,0.00010466,2]
[361784327,1747782200658,200.0,0.00010959,2]
[361784328,1747782394809,197.23088234,0.00010959,2]
[361784329,1747782395089,293.60413755,0.00010959,2]
[361784330,1747782440461,299576.76366988,0.00042804,120]
[361784338,1747782608086,396.770214,7.945e-05,2]
[361784339,1747782632019,-378.903086,0.0001176,2]
[361784340,1747782632029,-566.34289985,0.0001176,2]
[361784341,1747782632068,-509.06510015,0.0001176,2]
[361784342,1747782632078,-176.44925949,0.0001176,2]
[361784343,1747782632088,-250.0,0.0001183,2]
[361784344,1747782632098,-150.0,0.00011899,2]
[361784345,1747782632108,-1200.0,0.00011899,2]
[361784346,1747782632118,-193.49954803,0.000119,2]
[361784347,1747782632128,-2590.38812437,0.000119,2]
[361784348,1747782632137,-575.44347987,0.000119,2]
[361784349,1747782632147,-188.65661133,0.000119,2]
[361784350,1747782632157,-10689.13878927,0.000119,2]
[361784351,1747782632177,-1935.74076429,0.000119,2]
[361784352,1747782632187,-1000.0,0.000119,2]
[361784353,1747782632198,-466.7376062,0.00011973,2]
[361784354,1747782632214,-4977.18962122,0.0001199,2]
[361784355,1747782632223,-153.82180903,0.0001199,2]
[361784356,1747782632233,-156.39469174,0.00011993,2]
[361784357,1747782632242,-500.0,0.00011999,2]
[361784358,1747782632253,-23243.71624286,0.00012,2]
[361784363,1747782638035,-5336.5,0.00012,2]
[361784364,1747782638048,-1476.61709751,0.00012,2]
[361784366,1747782640470,-1012.605,0.00012,2]
[361784367,1747782640520,-1538.64307732,0.00012,2]
[361784368,1747782641437,-5303.14510514,0.00012,2]
[361784369,1747782641452,-7434.16000001,0.00012,2]
[361784370,1747782641470,-3360.1589772,0.00012,2]
[361784371,1747782641498,-1669.70803999,0.00012,2]
[361784372,1747782641522,-29637.06550257,0.00012,2]
[361784373,1747782641542,-30450.87864979,0.00012,2]
[361784374,1747782641560,-1892.17243291,0.00012,2]
[361784386,1747782646127,-780.99000001,0.00012,2]
[361784387,1747782646172,-80144.38579184,0.00012,2]
[361784391,1747783199028,420.0,0.00042815,60]
[361784392,1747783199346,420.0,0.00042815,60]
[361784393,1747783199428,1432.39,0.00042815,60]
[361784394,1747783199492,1159.93,0.00042815,60]
[361784395,1747783199537,420.0,0.00042815,60]
[361784396,1747783199581,420.0,0.00042815,60]
[361784397,1747783199645,1432.39,0.00042815,60]
[361784398,1747783199715,1168.45,0.00042815,60]
[361784399,1747783199764,16341.25,0.00042815,60]
[361784400,1747783199814,420.0,0.00042815,60]
[361784401,1747783199876,1159.93,0.00042815,60]
[361784402,1747783199921,198.86024295,0.00042815,60]
[361784403,1747783199982,1432.39,0.00042815,60]
[361784404,1747783200044,16341.25,0.00042815,60]
[361784405,1747783200787,1168.45,0.00042815,60]
[361784406,1747783200862,420.0,0.00042815,60]
[361784407,1747783200912,1159.93,0.00042815,60]
[361784408,1747783200971,1432.39,0.00042815,60]
[361784409,1747783201028,1168.45,0.00042815,60]
[361784410,1747783201114,16341.25,0.00042815,60]
[361784411,1747783201267,1159.93,0.00042815,60]
[361784412,1747783201319,420.0,0.00042815,60]
[361784413,1747783201376,1432.39,0.00042815,60]
[361784414,1747783201429,1168.45,0.00042815,60]
[361784415,1747783201477,16341.25,0.00042815,60]
[361784416,1747783201526,1159.93,0.00042815,60]
[361784417,1747783201578,420.0,0.00042815,60]
[361784418,1747783201629,1432.39,0.00042815,60]
[361784419,1747783201686,16341.25,0.00042815,60]
[361784420,1747783201815,400.0,0.00042815,60]
[361784421,1747783201904,1159.93,0.00042815,60]
[361784422,1747783201960,1432.39,0.00042815,60]
[361784423,1747783202100,179.06022655,0.00042815,60]
[361784424,1747783202164,16341.25,0.00042815,60]
[361784425,1747783202210,1159.93,0.00042815,60]
[361784426,1747783202258,1168.45,0.00042815,60]
[361784427,1747783202317,1432.39,0.00042815,60]
[361784428,1747783202461,16341.25,0.00042815,60]
[361784429,1747783202544,400.0,0.00042815,60]
[361784430,1747783202606,1159.93,0.00042815,60]
[361784431,1747783202653,1168.45,0.00042815,60]
[361784432,1747783202728,1432.39,0.00042815,60]
[361784433,1747783202841,16341.25,0.00042815,60]
[361784434,1747783202894,1159.93,0.00042815,60]
[361784435,1747783202975,1432.39,0.00042815,60]
[361784436,1747783203030,736.5,0.00042815,60]
[361784437,1747783203102,16341.25,0.00042815,60]
[361784438,1747783203162,1159.93,0.00042815,60]
[361784439,1747783203239,736.5,0.00042815,60]
[361784440,1747783203296,16341.25,0.00042815,60]
[361784441,1747783203363,1159.93,0.00042815,60]
[361784442,1747783203427,736.5,0.00042815,60]
[361784443,1747783203482,1159.93,0.00042815,60]
[361784444,1747783203541,16341.25,0.00042815,60]
[361784445,1747783203605,1432.39,0.00042815,60]
[361784446,1747783203666,736.5,0.00042815,60]
[361784447,1747783203942,1159.93,0.00042815,60]
[361784448,1747783204871,16341.25,0.00042815,60]
[361784449,1747783204948,1432.39,0.00042815,60]
[361784450,1747783205010,736.5,0.00042815,60]
[361784451,1747783205064,16341.25,0.00042815,60]
[361784452,1747783205123,1159.93,0.00042815,60]
[361784453,1747783205183,736.5,0.00042815,60]
[361784454,1747783205259,16341.25,0.00042815,60]
[361784455,1747783205323,736.5,0.00042815,60]
[361784456,1747783205377,1432.39,0.00042815,60]
[361784457,1747783205436,16341.25,0.00042815,60]
[361784458,1747783205493,736.5,0.00042815,60]
[361784459,1747783205551,1432.39,0.00042815,60]
[361784460,1747783205636,16341.25,0.00042815,60]
[361784461,1747783205748,1159.93,0.00042815,60]
[361784462,1747783205850,736.5,0.00042815,60]
[361784463,1747783205898,1432.39,0.00042815,60]
[361784464,1747783205947,1168.45,0.00042815,60]
[361784465,1747783206004,16341.25,0.00042815,60]
[361784466,1747783206050,1159.93,0.00042815,60]
[361784467,1747783206102,736.5,0.00042815,60]
[361784468,1747783206172,1168.45,0.00042815,60]
[361784469,1747783206221,1432.39,0.00042815,60]
[361784470,1747783206290,1159.93,0.00042815,60]
[361784471,1747783206339,16341.25,0.00042815,60]
[361784472,1747783206384,736.5,0.00042815,60]
[361784473,1747783206435,1168.45,0.00042815,60]
[361784474,1747783206481,1432.39,0.00042815,60]
[361784475,1747783206528,1159.93,0.00042815,60]
[361784476,1747783206574,16341.25,0.00042815,60]
[361784477,1747783206624,736.5,0.00042815,60]
[361784478,1747783206672,1168.45,0.00042815,60]
[361784479,1747783206748,1432.39,0.00042815,60]
[361784480,1747783206797,736.5,0.00042815,60]
[361784481,1747783206847,16341.25,0.00042815,60]
[361784482,1747783206997,1159.93,0.00042815,60]
[361784483,1747783207049,1168.45,0.00042815,60]
[361784484,1747783207357,1432.39,0.00042815,60]
[361784485,1747783207402,736.5,0.00042815,60]
[361784486,1747783207448,16341.25,0.00042815,60]
[361784487,1747783207496,1159.93,0.00042815,60]
[361784488,1747783207541,1432.39,0.00042815,60]
[361784489,1747783207595,736.5,0.00042815,60]
[361784490,1747783207652,16341.25,0.00042815,60]
[361784491,1747783207776,400.0,0.00042815,60]
[361784492,1747783207838,1281.52,0.00042815,60]
[361784493,1747783207975,1168.45,0.00042815,60]
[361784494,1747783208021,1432.39,0.00042815,60]
[361784495,1747783208067,416.73,0.00042815,60]
[361784496,1747783208113,736.5,0.00042815,60]
[361784497,1747783208162,1281.52,0.00042815,60]
[361784498,1747783208214,1168.45,0.00042815,60]
[361784499,1747783208265,1432.39,0.00042815,60]
[361784500,1747783208312,1159.93,0.00042815,60]
[361784501,1747783208358,1281.52,0.00042815,60]
[361784502,1747783208402,380.37269975,0.00042815,60]
[361784503,1747783208455,1168.45,0.00042815,60]
[361784504,1747783208501,736.5,0.00042815,60]
[361784505,1747783208547,1432.39,0.00042815,60]
[361784506,1747783208598,1159.93,0.00042815,60]
[361784507,1747783208707,1281.52,0.00042815,60]
[361784508,1747783208804,1168.45,0.00042815,60]
[361784509,1747783208852,1432.42050537,0.00042815,60]
[361784510,1747783208997,1159.93,0.00042815,60]
[361784511,1747783209043,736.5,0.00042815,60]
[361784512,1747783209131,1281.52,0.00042815,60]
[361784513,1747783209181,1168.45,0.00042815,60]
[361784514,1747783209227,1160.06653836,0.00042815,60]
[361784515,1747783209272,400.0,0.00042815,60]
[361784516,1747783209383,139.47612998,0.00042815,60]
[361784519,1747783288398,169.59790224,0.00011176,2]
[361784520,1747783288429,830.40209776,0.00011176,2]
[361784521,1747783395566,200.0,0.00011087,2]
[361784523,1747783507948,191.22,0.00011091,2]
[361784524,1747783554874,970.22,9.173e-05,2]
[361784525,1747783564338,5874.6561801,8e-05,2]
[361784528,1747783601223,6394.05,0.00011054,2]
[361784529,1747783618993,175.84,0.00011054,2]
[361784530,1747783619620,175.84,0.00011081,2]
[361784531,1747783619831,175.84,0.00011109,2]
[361784532,1747783677164,2073.83993859,0.0001,2]
[361784533,1747783682682,1556.09,0.00011091,2]
[361784535,1747783717851,2651.19232671,0.0001,2]
[361784536,1747783718500,150.0,0.00013,5]
[361784541,1747783812672,208.0,0.00010716,2]
[361784542,1747783828643,1538.23,0.00011174,2]
[361784563,1747783833464,-420.02,0.00011292,2]
[361784564,1747783833474,-250.0,0.00011324,2]
[361784565,1747783833484,-250.0,0.00011356,2]
[361784566,1747783833494,-249.63249604,0.00011437,2]
[361784567,1747783833673,-432.32632991,0.00011437,2]
[361784568,1747783833685,-288.26117405,0.00011437,2]
[361784569,1747783833695,-408.73882595,0.000117,2]
[361784570,1747783833826,-814.26117405,0.000117,2]
[361784571,1747783833836,-215.03581358,0.000117,2]
[361784572,1747783833848,-526.38265551,0.000117,2]
[361784573,1747783833861,-258.58153091,0.000117,2]
[361784574,1747783833871,-1000.0,0.000117,2]
[361784575,1747783833882,-1000.0,0.000117,2]
[361784576,1747783833894,-1000.0,0.000117,2]
[361784577,1747783833905,-1051.0,0.000117,2]
[361784578,1747783833915,-341.012777,0.0001176,2]
[361784579,1747783833926,-389.42,0.00011811,2]
[361784580,1747783833937,-150.0,0.00011899,2]
[361784581,1747783833948,-187.32770199,0.000119,2]
[361784582,1747783833958,-187.45120448,0.000119,2]
[361784583,1747783833969,-2090.3937593,0.000119,2]
[361784584,1747783833982,-10733.68387837,0.000119,2]
[361784585,1747783833991,-172.92103933,0.000119,2]
[361784586,1747783834001,-575.44347987,0.000119,2]
[361784587,1747783834011,-178.96,0.00011925,2]
[361784588,1747783834020,-200.0,0.00011947,2]
[361784589,1747783834030,-500.0,0.00011973,2]
[361784590,1747783834040,-28617.01944449,0.00011991,2]
[361784591,1747783834052,-19589.57461304,0.00011991,2]
[361784592,1747783834064,-44915.25124287,0.00011991,2]
[361784593,1747783834074,-4638.7685571,0.00011991,2]